[Event "34th MPL National U14G-ch 2022"]
[Site "Ahmedabad"]
[Date "2022.05.13"]
[Round "9.1"]
[White "Mrittika Mallick"]
[Black "Bhat Sannidhi Ramakrishna"]
[Result "1-0"]
[ECO "B01"]
[WhiteElo "1982"]
[BlackElo "1373"]
[Annotator "TA"]
[PlyCount "145"]
[EventDate "2022.05.09"]
[EventType "swiss"]
[EventCountry "IND"]
[SourceTitle "playchess.com"]
[Source "ChessBase"]
[SourceQuality "1"]
[TimeControl "5400+30"]

{[%evp 9,145,58,69,57,69,67,70,61,83,-26,50,43,72,69,75,75,71,47,83,79,83,81,86,54,79,59,97,97,120,87,87,77,108,112,131,117,120,112,495,238,478,477,476,472,496,139,479,291,274,159,161,153,180,119,121,108,106,75,75,30,82,55,93,52,60,49,108,48,59,54,200,164,156,121,142,90,106,0,144,131,161,138,180,180,173,67,75,37,43,28,40,25,35,24,41,9,108,97,95,87,150,124,133,133,238,107,112,108,136,0,97,91,248,237,226,196,185,72,474,463,443,423,900,819,1574,1275,4627,593,4627,4622,6323,5081,29976,29977,29979,29980,29987,29988]} 1. e4 {[%emt 0:00:17]} d5 {[%emt 0:00:09]} 2. exd5 {[%emt 0:00:37]} Qxd5 {[%emt 0:00:09]} 3. d4 {[%emt 0:00:37]} c6 {[%emt 0:01:05]} 4. c4 {[%emt 0:01:28]} Qa5+ {[%emt 0:00:56]} 5. Nc3 {[%emt 0:01:06]} Nf6 {[%emt 0:01:00]} 6. Nf3 {[%emt 0:03:31] Inhibits e5. B01: Scandinavian Defence.} Bg4 {[%emt 0:07:12][%cal Oe7e5]} 7. Be2 {[%emt 0:02:30]} Nbd7 {[%emt 0:05:26]} 8. O-O {[%emt 0:01:17] White is slightly better.} e6 {[%emt 0:06:20]} 9. Ne5 {[%emt 0:06:16]} (9. h3 $16 Bh5 10. Bf4) 9... Bxe2 {[%emt 0:01:11]} ({Better is} 9... Nxe5 $11 10. dxe5 Rd8) 10. Qxe2 $14 {[%emt 0:00:12]} Bd6 {[%emt 0:00:22]} 11. Nxd7 {[%emt 0:04:59]} Nxd7 {[%emt 0:07:43]} 12. d5 {[%emt 0:05:42] [#]} O-O $146 {[%emt 0:00:40][%cal Re6d5]} ({Predecessor:} 12... cxd5 13. cxd5 e5 14. Nb5 Bb8 15. Bd2 Qb6 16. Be3 Qd8 17. Rfd1 O-O 18. d6 a6 {0-1 (42) Hartikainen,J (2133)-Sanudula,K (1717) Chess.com INT 2021}) 13. dxe6 {[%emt 0:10:26]} (13. Ne4 $5 {[%cal Re4d6]} Be5 14. dxe6 fxe6 15. Be3 $14) 13... Rae8 {[%emt 0:00:46]} 14. exf7+ {[%emt 0:01:18]} Kxf7 {[%emt 0:00:08]} 15. Qd3 {[%emt 0:06:55][%csl LRd6,LRh7]} Qc7 {[%emt 0:13:19]} 16. Qh3 {[%emt 0:09:53]} (16. Qxh7 $2 Nf6 17. Qf5 Bxh2+ 18. Kh1 Rh8 $19) 16... Kg8 {[%emt 0:08:31]} 17. Be3 {[%emt 0:01:49]} Re5 {[%emt 0:03:15]} 18. Rad1 {[%emt 0:10:17][%cal Od1d6]} (18. Bxa7 b6 19. Rad1 Rf6 $17) 18... Rf7 {[%emt 0:08:31]} 19. Ne2 {[%emt 0:30:50][%cal Bc3e2,Be2d4,Bd4f3][%mdl 32]} (19. Bxa7 b6 20. Qg3 Re6 21. Rxd6 (21. Qh3 $2 Rh6 $19) 21... Qxd6 22. Qxd6 Rxd6 $17) 19... Re8 {[%emt 0:14:33]} 20. Nd4 {[%emt 0:00:00] Threatens to win with Ne6.} Nf8 {[%emt 0:04:53] Against Ne6} 21. Nf3 {[%emt 0:00:00]} Ne6 {[%emt 0:02:12]} 22. Rfe1 {[%emt 0:00:00]} (22. Bxa7 $6 Nf4 23. Qg4 h5 $14) 22... Rfe7 {[%emt 0:04:41]} 23. Qg4 {[%emt 0:00:00]} (23. Bxa7 $2 Ng5 $1 {[%mdl 512]} 24. Rxe7 Nxh3+ 25. gxh3 Qxe7 $19) 23... Nf4 $2 {[%emt 0:02:23][%mdl 8192]} (23... Bb4 $16 {is more resistant.}) 24. Bxf4 {[%emt 0:00:00]} (24. c5 $142 Nd5 25. cxd6 Qxd6 26. Bd4) 24... Bxf4 {[%emt 0:00:14]} (24... Rxe1+ 25. Rxe1 Rxe1+ 26. Nxe1 Bxf4) 25. Rxe7 $1 $18 {[%emt 0:00:00]} Rxe7 {[%emt 0:00:02]} 26. g3 {[%emt 0:00:00]} Bd6 {[%emt 0:00:31]} 27. Qd4 $2 {[%emt 0:00:00]} (27. c5 $18 {and White stays clearly on top.} Bxc5 28. Qc4+ Rf7 29. Ng5 (29. Qxc5 Rxf3 30. Qxa7 Rf8 $16)) 27... Re6 {[%emt 0:01:19][%mdl 8192]} (27... Be5 $16 28. Nxe5 (28. Qxa7 Bxb2 29. Qa8+ Kf7 $16) 28... Qxe5 29. Qxe5 (29. Qxa7 Qxb2 30. Qb8+ Kf7 $16) 29... Rxe5) 28. c5 {[%emt 0:00:00]} Bf8 {[%emt 0:02:00]} 29. Qc4 {[%emt 0:00:00]} (29. Ng5 $18 Rf6 30. Qc4+ Kh8 31. Qe4) 29... Qf7 $16 {[%emt 0:00:15][%cal Oe6e1]} 30. Kg2 {[%emt 0:00:00] aiming for Ng5.} h6 {[%emt 0:00:30] Inhibits Ng5.} 31. Rd8 {[%emt 0:00:00] Prevents Re8.} (31. b4 $18) 31... Re8 {[%emt 0:03:37]} 32. Qxf7+ {[%emt 0:01:30]} Kxf7 {[%emt 0:00:02][%mdl 4096] Endgame KRB-KRN} 33. Rd7+ {[%emt 0:00:11]} Re7 {[%emt 0:00:21]} 34. Rd2 {[%emt 0:01:19] White is more active.} g5 {[%emt 0:01:23]} (34... Re4 $11) 35. h3 {[%emt 0:01:48]} Re4 {[%emt 0:00:20]} 36. Rc2 {[%emt 0:01:18]} Ke6 {[%emt 0:01:23]} 37. Nd2 {[%emt 0:01:21]} Re5 {[%emt 0:00:08]} (37... Rd4 $14) 38. Nb3 {[%emt 0:00:10]} (38. b4 $16) 38... Rd5 {[%emt 0:01:18]} 39. Kf3 {[%emt 0:00:27]} Bg7 {[%emt 0:00:31]} ({Black should play} 39... h5 $1 $14) 40. Na5 $18 {[%emt 0:00:33]} Rd7 {[%emt 0:00:30]} 41. b3 {[%emt 0:00:36]} h5 {[%emt 0:00:23]} 42. Ke4 {[%emt 0:00:45]} (42. Re2+ $142 Kd5 43. Rd2+ Bd4 44. b4) 42... Rd4+ {[%emt 0:00:16]} 43. Kf3 {[%emt 0:00:05]} Rd7 $1 {[%emt 0:00:05]} 44. Re2+ {[%emt 0:00:21]} Kf7 {[%emt 0:01:16]} 45. Nc4 {[%emt 0:00:11]} Bd4 {[%emt 0:00:34]} 46. Nd6+ {[%emt 0:00:41]} Kf6 {[%emt 0:00:20]} 47. Rd2 {[%emt 0:00:25]} (47. b4 $18) 47... Ke5 $14 {[%emt 0:00:35]} 48. Nc4+ {[%emt 0:00:36]} Kd5 {[%emt 0:00:19]} 49. Ne3+ {[%emt 0:01:15]} Kxc5 {[%emt 0:00:35]} 50. Nf5 {[%emt 0:00:57] And now Ke4 would win.} (50. g4 $5 {[%cal Rg4h5]}) 50... Rd5 {[%emt 0:00:36]} 51. Rc2+ {[%emt 0:00:32]} Kb5 {[%emt 0:00:32]} 52. g4 {[%emt 0:00:34]} h4 {[%emt 0:00:18]} (52... Bf6 $11) 53. Ke4 $16 {[%emt 0:00:15]} Bf6 {[%emt 0:00:40]} 54. f4 {[%emt 0:00:16] Against Re5+} gxf4 {[%emt 0:00:19]} ({Black should try} 54... a5) 55. Kxf4 {[%emt 0:00:30] Strongly threatening g5.} Rd3 {[%emt 0:00:40]} 56. Rh2 {[%emt 0:00:43]} ({Much less strong is} 56. g5 Bxg5+ 57. Kxg5 Rxh3 58. Nxh4 a5) 56... Bd8 {[%emt 0:00:13]} (56... Rd1 $16 {might work better.}) 57. Ke4 {[%emt 0:00:08]} (57. g5 $1 $18 {and the rest is easy.}) 57... Rd1 {[%emt 0:00:37]} 58. Nd4+ $1 {[%emt 0:00:21]} Kb4 {[%emt 0:00:12] [#]} 59. Ne6 {[%emt 0:00:27]} (59. Nf3 $1 $16) 59... Be7 {[%emt 0:00:47]} (59... Re1+ $11 {keeps the balance.} 60. Kf5 Rf1+ 61. Ke4 Re1+ 62. Kf5 Rf1+ 63. Ke5 Re1+ 64. Kd6 Rd1+ 65. Ke5 Re1+ 66. Kf5) 60. g5 {[%emt 0:00:53]} Re1+ $2 {[%emt 0:00:46]} (60... Rd6 $16) 61. Kf5 $18 {[%emt 0:00:04]} Rf1+ {[%emt 0:00:28]} 62. Kg6 {[%emt 0:00:15]} Re1 {[%emt 0:00:25] [#]} 63. Kf7 {[%emt 0:00:18]} (63. Nf4 $1 $18 {[%cal Rf4d3] Hoping for Nd3+.} Ka3 64. Kf5) 63... Rxe6 $2 {[%emt 0:00:02][%mdl 8192]} 64. Kxe6 {[%emt 0:00:10]} Bxg5 $16 {[%emt 0:00:01] KR-KB} 65. Rg2 {[%emt 0:00:33]} Bd8 {[%emt 0:00:40]} (65... Be3 $142 66. Re2 Bg5 67. Re4+ Ka3 68. Ra4+ Kb2 69. Rxa7 b5) 66. Kd7 $18 {[%emt 0:01:06]} Bb6 {[%emt 0:01:05]} 67. Rg4+ {[%emt 0:00:18]} Ka3 {[%emt 0:00:07]} 68. Ra4+ {[%emt 0:00:03]} Kb2 {[%emt 0:00:05]} 69. Kc8 {[%emt 0:00:05]} Bf2 {[%emt 0:00:35]} 70. Kxb7 {[%emt 0:00:07]} c5 {[%emt 0:00:27]} 71. Rxa7 {[%emt 0:00:27] White mates.} c4 {[%emt 0:00:36] [#]} 72. bxc4 $1 {[%emt 0:00:03]} Bxa7 {[%emt 0:00:07]} (72... Kc3 73. Ra4) 73. Kxa7 {[%emt 0:00:05] Weighted Error Value: White=0.42/Black=0.47} 1-0

[Event "34th MPL National U14G-ch 2022"]
[Site "Ahmedabad"]
[Date "2022.05.13"]
[Round "9.2"]
[White "Rajanya Datta"]
[Black "Anupam M Sreekumar"]
[Result "0-1"]
[ECO "C44"]
[WhiteElo "1589"]
[BlackElo "1673"]
[Annotator "NA RC COMBH"]
[PlyCount "70"]
[EventDate "2022.05.09"]
[EventType "swiss"]
[EventCountry "IND"]
[SourceTitle "playchess.com"]
[Source "ChessBase"]
[SourceQuality "1"]
[TimeControl "5400+30"]

1. e4 {[%emt 0:00:10]} e5 {[%emt 0:00:22]} 2. Nf3 {[%emt 0:00:17]} Nc6 {[%emt 0:00:12]} 3. c3 {[%emt 0:00:14]} Nf6 {[%emt 0:01:03]} 4. d4 {[%emt 0:00:14]} Nxe4 {[%emt 0:00:38]} 5. Bd3 {[%emt 0:00:46]} d5 {[%emt 0:03:28]} 6. Nxe5 {[%emt 0:01:16]} Nxe5 {[%emt 0:10:18]} 7. dxe5 {[%emt 0:00:10]} Qh4 {[%emt 0:08:46]} 8. Be3 {[%emt 0:05:48]} Bc5 {[%emt 0:02:21]} 9. Bxc5 {[%emt 0:09:59]} Nxc5 {[%emt 0:00:27]} 10. Bb5+ {[%emt 0:07:32]} c6 {[%emt 0:03:40]} 11. Be2 {[%emt 0:12:22]} Qe4 {[%emt 0:04:51]} 12. O-O {[%emt 0:01:16]} Qxe5 {[%emt 0:01:10]} 13. f4 {[%emt 0:06:11]} Qe3+ {[%emt 0:04:16]} 14. Kh1 {[%emt 0:00:05]} Ne4 {[%emt 0:01:01]} 15. Qe1 {[%emt 0:00:03]} O-O {[%emt 0:00:50]} 16. a4 {[%emt 0:05:50]} Re8 {[%emt 0:04:38]} 17. Rf3 {[%emt 0:01:55]} Qxe2 {[%emt 0:02:14]} 18. Qxe2 {[%emt 0:00:33]} Ng3+ {[%emt 0:00:07]} 19. hxg3 {[%emt 0:00:02]} Rxe2 {[%emt 0:00:11]} 20. b4 {[%emt 0:00:06]} Re1+ {[%emt 0:00:28]} 21. Kh2 {[%emt 0:00:21]} Bf5 {[%emt 0:00:06]} 22. b5 {[%emt 0:00:05]} Rxb1 {[%emt 0:00:16]} 23. Rxb1 {[%emt 0:00:03]} Bxb1 {[%emt 0:00:06]} 24. bxc6 {[%emt 0:00:07]} bxc6 {[%emt 0:00:10]} 25. c4 {[%emt 0:00:02]} dxc4 {[%emt 0:00:13]} 26. Rc3 {[%emt 0:00:02]} Bd3 {[%emt 0:00:08]} 27. f5 {[%emt 0:00:04]} f6 {[%emt 0:00:20]} 28. g4 {[%emt 0:00:03]} Rb8 {[%emt 0:00:07]} 29. g5 {[%emt 0:00:04]} fxg5 {[%emt 0:00:24]} 30. f6 {[%emt 0:00:05]} gxf6 {[%emt 0:00:05]} 31. Rxd3 {[%emt 0:00:02]} cxd3 {[%emt 0:00:09]} 32. a5 {[%emt 0:00:02]} d2 {[%emt 0:00:08]} 33. a6 {[%emt 0:00:02]} d1=Q {[%emt 0:00:08]} 34. g4 {[%emt 0:00:04]} Rb2+ {[%emt 0:00:15]} 35. Kh3 {[%emt 0:00:03]} Qf3# {[%emt 0:00:09]} 0-1

[Event "34th MPL National U14G-ch 2022"]
[Site "Ahmedabad"]
[Date "2022.05.13"]
[Round "9.3"]
[White "Shreya G Hipparagi"]
[Black "Roy Aanya"]
[Result "0-1"]
[ECO "C01"]
[WhiteElo "1548"]
[BlackElo "1560"]
[Annotator "NA RC COMBH"]
[PlyCount "50"]
[EventDate "2022.05.09"]
[EventType "swiss"]
[EventCountry "IND"]
[SourceTitle "playchess.com"]
[Source "ChessBase"]
[SourceQuality "1"]
[TimeControl "5400+30"]

1. e4 {[%emt 0:00:07]} e6 {[%emt 0:00:05]} 2. d4 {[%emt 0:00:43]} d5 {[%emt 0:00:02]} 3. exd5 {[%emt 0:00:12]} exd5 {[%emt 0:00:03]} 4. Bf4 {[%emt 0:00:15]} Bd6 {[%emt 0:00:10]} 5. Bxd6 {[%emt 0:00:11]} Qxd6 {[%emt 0:00:17]} 6. Bd3 {[%emt 0:00:34]} Ne7 {[%emt 1:32:53]} 7. Nc3 {[%emt 0:01:04]} Nbc6 {[%emt 0:00:00]} 8. Nf3 {[%emt 0:01:44]} Bg4 {[%emt 0:00:00]} 9. Nb5 {[%emt 0:02:00]} Qd7 {[%emt 0:00:00]} 10. c3 {[%emt 0:01:53]} a6 {[%emt 0:00:00]} 11. Na3 {[%emt 0:01:18]} O-O-O {[%emt 0:00:00]} 12. h3 {[%emt 0:04:09]} Bh5 {[%emt 0:00:00]} 13. g4 {[%emt 0:01:16]} Bg6 {[%emt 0:00:00]} 14. Qe2 {[%emt 0:01:14]} h5 {[%emt 0:00:00]} 15. g5 {[%emt 0:02:45]} h4 {[%emt 0:00:00]} 16. Bxg6 {[%emt 0:09:19]} Nxg6 {[%emt 0:00:00]} 17. O-O-O {[%emt 0:02:27]} Rde8 {[%emt 0:00:00]} 18. Qd2 {[%emt 0:08:13]} Qf5 {[%emt 0:00:00]} 19. Qd3 {[%emt 0:02:25]} Re4 {[%emt 0:00:00]} 20. Nc2 {[%emt 0:06:27]} Nf4 {[%emt 0:00:00]} 21. Qf1 {[%emt 0:10:20]} Ne2+ {[%emt 0:00:00]} 22. Kb1 {[%emt 0:00:18]} Qxf3 {[%emt 0:00:00]} 23. Ne3 {[%emt 0:00:55]} Ng3 {[%emt 0:00:00]} 24. fxg3 {[%emt 0:00:31]} Rxe3 {[%emt 0:00:00]} 25. Qg1 {[%emt 0:00:55]} hxg3 {[%emt 0:00:00]} 0-1

[Event "34th MPL National U14G-ch 2022"]
[Site "Ahmedabad"]
[Date "2022.05.13"]
[Round "9.4"]
[White "Pragnya H G"]
[Black "Pournami S"]
[Result "1-0"]
[ECO "B33"]
[WhiteElo "1605"]
[BlackElo "1376"]
[Annotator "NA RC COMBH"]
[PlyCount "107"]
[EventDate "2022.05.09"]
[EventType "swiss"]
[EventCountry "IND"]
[SourceTitle "playchess.com"]
[Source "ChessBase"]
[SourceQuality "1"]
[TimeControl "5400+30"]

1. e4 {[%emt 0:02:15]} c5 {[%emt 0:00:04]} 2. Nf3 {[%emt 0:00:04]} e6 {[%emt 0:00:04]} 3. d4 {[%emt 0:00:06]} cxd4 {[%emt 0:00:03]} 4. Nxd4 {[%emt 0:00:04]} Nc6 {[%emt 0:00:04]} 5. Nc3 {[%emt 0:00:06]} Nf6 {[%emt 0:00:04]} 6. Ndb5 {[%emt 0:00:06]} d6 {[%emt 0:00:11]} 7. Bf4 {[%emt 0:00:05]} e5 {[%emt 0:00:04]} 8. Bg5 {[%emt 0:00:04]} a6 {[%emt 0:00:13]} 9. Na3 {[%emt 0:00:05]} Be7 {[%emt 0:00:15]} 10. Bxf6 {[%emt 0:00:09]} Bxf6 {[%emt 0:00:05]} 11. Nd5 {[%emt 0:00:10]} b5 {[%emt 0:00:41]} 12. c3 {[%emt 0:00:08]} O-O {[%emt 0:00:34]} 13. Nc2 {[%emt 0:00:09]} Be7 {[%emt 0:03:21]} 14. Bd3 {[%emt 0:01:21]} f5 {[%emt 0:01:52]} 15. exf5 {[%emt 0:00:49]} Bxf5 {[%emt 0:00:04]} 16. Bxf5 {[%emt 0:00:10]} Rxf5 {[%emt 0:00:07]} 17. O-O {[%emt 0:03:45]} Rg5 {[%emt 0:02:51]} 18. Qd2 {[%emt 0:01:23]} Rg6 {[%emt 0:04:20]} 19. Nce3 {[%emt 0:01:32]} Bg5 {[%emt 0:01:46]} 20. Rad1 {[%emt 0:02:57]} Rb8 {[%emt 0:19:40]} 21. Qd3 {[%emt 0:06:26]} Qd7 {[%emt 0:05:04]} 22. f4 {[%emt 0:07:02]} exf4 {[%emt 0:06:56]} 23. Nxf4 {[%emt 0:00:17]} Bxf4 {[%emt 0:00:23]} 24. Rxf4 {[%emt 0:00:04]} Qh3 {[%emt 0:03:55]} 25. Kh1 {[%emt 0:05:00]} Qh6 {[%emt 0:04:01]} 26. Qd5+ {[%emt 0:08:55]} Re6 {[%emt 0:02:05]} 27. Re4 {[%emt 0:01:02]} Rbe8 {[%emt 0:00:24]} 28. Nf5 {[%emt 0:01:22]} Qf6 {[%emt 0:03:07]} 29. Rde1 {[%emt 0:03:12]} Ne5 {[%emt 0:01:56]} 30. Nd4 {[%emt 0:00:13]} h6 {[%emt 0:41:16]} 31. Nxe6 {[%emt 0:00:06]} Rxe6 {[%emt 0:00:00]} 32. Rf4 {[%emt 0:02:05]} Qg6 {[%emt 0:00:00]} 33. Qe4 {[%emt 0:03:21]} Qg5 {[%emt 0:00:00]} 34. g3 {[%emt 0:01:42]} Rg6 {[%emt 0:00:00]} 35. Qd5+ {[%emt 0:03:56]} Kh7 {[%emt 0:00:00]} 36. Rf8 {[%emt 0:00:07]} Rf6 {[%emt 0:00:00]} 37. Qg8+ {[%emt 0:00:07]} Kg6 {[%emt 0:00:00]} 38. Rxf6+ {[%emt 0:00:40]} Qxf6 {[%emt 0:00:00]} 39. Qd5 {[%emt 0:00:06]} Kh7 {[%emt 0:00:00]} 40. Kg2 {[%emt 0:00:14]} h5 {[%emt 0:00:00]} 41. Rd1 {[%emt 0:04:29]} Qg6 {[%emt 0:00:00]} 42. h3 {[%emt 0:02:37]} Nc4 {[%emt 0:00:00]} 43. Qd3 {[%emt 0:00:30]} Qxd3 {[%emt 0:00:00]} 44. Rxd3 {[%emt 0:00:05]} Nxb2 {[%emt 0:00:00]} 45. Rxd6 {[%emt 0:00:04]} Na4 {[%emt 0:00:00]} 46. Rc6 {[%emt 0:00:10]} a5 {[%emt 0:00:00]} 47. c4 {[%emt 0:00:51]} b4 {[%emt 0:00:00]} 48. c5 {[%emt 0:00:33]} Nc3 {[%emt 0:00:00]} 49. Rb6 {[%emt 0:00:12]} Nd5 {[%emt 0:00:00]} 50. Ra6 {[%emt 0:00:40]} Kg8 {[%emt 0:00:00]} 51. Rxa5 {[%emt 0:00:09]} Kf8 {[%emt 0:00:00]} 52. c6 {[%emt 0:00:05]} Nc7 {[%emt 0:00:00]} 53. Ra7 {[%emt 0:00:05]} Nd5 {[%emt 0:00:00]} 54. c7 {[%emt 0:00:07]} 1-0

[Event "34th MPL National U14G-ch 2022"]
[Site "Ahmedabad"]
[Date "2022.05.13"]
[Round "9.5"]
[White "Debapriya Manna"]
[Black "Rout Yashita"]
[Result "1/2-1/2"]
[ECO "E06"]
[WhiteElo "1384"]
[BlackElo "1718"]
[Annotator "NA RC COMBH"]
[PlyCount "120"]
[EventDate "2022.05.09"]
[EventType "swiss"]
[EventCountry "IND"]
[SourceTitle "playchess.com"]
[Source "ChessBase"]
[SourceQuality "1"]
[TimeControl "5400+30"]

1. c4 {[%emt 0:00:44]} e6 {[%emt 0:00:58]} 2. g3 {[%emt 0:01:48]} Nf6 {[%emt 0:00:27]} 3. Bg2 {[%emt 0:01:21]} d5 {[%emt 0:00:31]} 4. d4 {[%emt 0:00:53]} Be7 {[%emt 0:00:21]} 5. Nc3 {[%emt 0:01:13]} O-O {[%emt 0:00:49]} 6. Nf3 {[%emt 0:00:14]} c6 {[%emt 0:00:15]} 7. O-O {[%emt 0:01:25]} b6 {[%emt 0:00:36]} 8. b3 {[%emt 0:01:58]} a5 {[%emt 0:01:44]} 9. a4 {[%emt 0:03:28]} Ba6 {[%emt 0:01:48]} 10. cxd5 {[%emt 0:03:18]} cxd5 {[%emt 0:01:29]} 11. Bb2 {[%emt 0:07:16]} Nc6 {[%emt 0:01:44]} 12. Rc1 {[%emt 0:04:49]} Rc8 {[%emt 0:03:30]} 13. Qc2 {[%emt 0:12:02]} Nb4 {[%emt 0:08:33]} 14. Qb1 {[%emt 0:07:02]} Bd6 {[%emt 0:11:25]} 15. Rfd1 {[%emt 0:07:22]} Qe7 {[%emt 0:02:45]} 16. Ba3 {[%emt 0:08:32]} Rfd8 {[%emt 0:05:32]} 17. e4 {[%emt 0:07:12]} dxe4 {[%emt 0:04:11]} 18. Nxe4 {[%emt 0:00:21]} Nxe4 {[%emt 0:01:06]} 19. Qxe4 {[%emt 0:01:50]} Bb7 {[%emt 0:02:15]} 20. Qe2 {[%emt 0:00:31]} Nd5 {[%emt 0:12:35]} 21. Bxd6 {[%emt 0:02:12]} Qxd6 {[%emt 0:00:06]} 22. Qd2 {[%emt 0:00:58]} Qa3 {[%emt 0:04:55]} 23. Rxc8 {[%emt 0:03:09]} Rxc8 {[%emt 0:00:04]} 24. Qd3 {[%emt 0:00:17]} Rc3 {[%emt 0:03:25]} 25. Qb5 {[%emt 0:01:53]} Bc6 {[%emt 0:08:25]} 26. Qa6 {[%emt 0:00:27]} Qe7 {[%emt 0:01:05]} 27. Ne5 {[%emt 0:01:57]} Qb7 {[%emt 0:00:50]} 28. Qxb7 {[%emt 0:01:39]} Bxb7 {[%emt 0:00:06]} 29. Rb1 {[%emt 0:00:38]} f6 {[%emt 0:04:00]} 30. Nc4 {[%emt 0:00:59]} Bc6 {[%emt 0:00:43]} 31. Bxd5 {[%emt 0:02:31]} Bxd5 {[%emt 0:00:24]} 32. Nxb6 {[%emt 0:00:06]} Rxb3 {[%emt 0:00:13]} 33. Rxb3 {[%emt 0:00:08]} Bxb3 {[%emt 0:00:05]} 34. Kf1 {[%emt 0:00:11]} Kf7 {[%emt 0:02:18]} 35. Ke2 {[%emt 0:00:06]} Ke7 {[%emt 0:04:26]} 36. Kd3 {[%emt 0:00:08]} Kd6 {[%emt 0:01:02]} 37. Kc3 {[%emt 0:00:23]} Bd5 {[%emt 0:03:58]} 38. Nc4+ {[%emt 0:02:41]} Bxc4 {[%emt 0:00:05]} 39. Kxc4 {[%emt 0:00:02]} Kc6 {[%emt 0:00:06]} 40. f4 {[%emt 0:00:22]} f5 {[%emt 0:03:19]} 41. h3 {[%emt 0:00:09]} h6 {[%emt 0:00:54]} 42. h4 {[%emt 0:00:09]} g6 {[%emt 0:00:34]} 43. Kc3 {[%emt 0:00:08]} Kd5 {[%emt 0:00:06]} 44. Kd3 {[%emt 0:01:13]} h5 {[%emt 0:01:10]} 45. Kc3 {[%emt 0:00:04]} Ke4 {[%emt 0:04:43]} 46. Kc4 {[%emt 0:00:09]} Kf3 {[%emt 0:00:04]} 47. Kc5 {[%emt 0:01:05]} Kxg3 {[%emt 0:00:04]} 48. Kd6 {[%emt 0:00:04]} Kxh4 {[%emt 0:01:22]} 49. Kxe6 {[%emt 0:00:07]} Kg3 {[%emt 0:00:10]} 50. d5 {[%emt 0:00:29]} h4 {[%emt 0:00:04]} 51. d6 {[%emt 0:00:04]} h3 {[%emt 0:00:03]} 52. d7 {[%emt 0:00:02]} h2 {[%emt 0:00:04]} 53. d8=Q {[%emt 0:00:04]} h1=Q {[%emt 0:00:06]} 54. Qg5+ {[%emt 0:00:28]} Kf2 {[%emt 0:00:58]} 55. Qxg6 {[%emt 0:01:20]} Qe4+ {[%emt 0:00:49]} 56. Kf6 {[%emt 0:00:12]} Qxf4 {[%emt 0:02:02]} 57. Qxf5 {[%emt 0:00:19]} Ke3 {[%emt 0:00:12]} 58. Qxf4+ {[%emt 0:00:44]} Kxf4 {[%emt 0:00:05]} 59. Kg6 {[%emt 0:00:21]} Ke4 {[%emt 0:00:42]} 60. Kg5 {[%emt 0:00:07]} Ke5 {[%emt 0:00:52]} 1/2-1/2

[Event "34th MPL National U14G-ch 2022"]
[Site "Ahmedabad"]
[Date "2022.05.13"]
[Round "9.6"]
[White "Shubhi Gupta"]
[Black "Elakshi Srivastava"]
[Result "1-0"]
[ECO "E61"]
[WhiteElo "1613"]
[BlackElo "1256"]
[Annotator "NA RC COMBH"]
[PlyCount "133"]
[EventDate "2022.05.09"]
[EventType "swiss"]
[EventCountry "IND"]
[SourceTitle "playchess.com"]
[Source "ChessBase"]
[SourceQuality "1"]
[TimeControl "5400+30"]

1. d4 {[%emt 0:00:28]} Nf6 {[%emt 0:00:08]} 2. c4 {[%emt 0:00:05]} c5 {[%emt 0:00:32]} 3. Nf3 {[%emt 0:00:19]} g6 {[%emt 0:00:28]} 4. Bg5 {[%emt 0:00:37]} Bg7 {[%emt 0:00:30]} 5. Nc3 {[%emt 0:00:14]} d6 {[%emt 0:01:43]} 6. e3 {[%emt 0:00:43]} Nbd7 {[%emt 0:05:02]} 7. Be2 {[%emt 0:01:19]} O-O {[%emt 0:00:48]} 8. O-O {[%emt 0:00:58]} b6 {[%emt 0:02:01]} 9. Qc2 {[%emt 0:01:22]} Bb7 {[%emt 0:00:52]} 10. Rfd1 {[%emt 0:00:52]} a6 {[%emt 0:01:41]} 11. Rac1 {[%emt 0:04:09]} Qc7 {[%emt 0:01:20]} 12. b3 {[%emt 0:04:27]} Rfb8 {[%emt 0:05:41]} 13. a4 {[%emt 0:02:29]} Nf8 {[%emt 0:02:17]} 14. d5 {[%emt 0:03:21]} h6 {[%emt 0:03:27]} 15. Bh4 {[%emt 0:00:19]} g5 {[%emt 0:03:19]} 16. Bg3 {[%emt 0:00:38]} Nh5 {[%emt 0:01:41]} 17. Nd2 {[%emt 0:02:10]} Nxg3 {[%emt 0:00:19]} 18. hxg3 {[%emt 0:00:13]} Bc8 {[%emt 0:02:14]} 19. Nf3 {[%emt 0:03:23]} Ng6 {[%emt 0:02:59]} 20. Bd3 {[%emt 0:00:39]} Ne5 {[%emt 0:00:48]} 21. Nxe5 {[%emt 0:00:26]} Bxe5 {[%emt 0:00:46]} 22. f4 {[%emt 0:00:49]} gxf4 {[%emt 0:04:12]} 23. gxf4 {[%emt 0:01:09]} Bg7 {[%emt 0:00:28]} 24. Ne4 {[%emt 0:01:35]} Bg4 {[%emt 0:02:33]} 25. Rf1 {[%emt 0:00:48]} Kh8 {[%emt 0:01:02]} 26. f5 {[%emt 0:02:59]} Be5 {[%emt 0:03:46]} 27. Qf2 {[%emt 0:03:00]} Rg8 {[%emt 0:06:29]} 28. Qh4 {[%emt 0:00:27]} h5 {[%emt 0:00:15]} 29. f6 {[%emt 0:04:29]} exf6 {[%emt 0:07:17]} 30. Nxf6 {[%emt 0:01:00]} Qe7 {[%emt 0:00:41]} 31. Qf2 {[%emt 0:01:59]} Rg7 {[%emt 0:02:09]} 32. Nxg4 {[%emt 0:01:44]} hxg4 {[%emt 0:00:40]} 33. g3 {[%emt 0:00:32]} Qg5 {[%emt 0:01:40]} 34. Kg2 {[%emt 0:00:48]} Kg8 {[%emt 0:00:40]} 35. Rh1 {[%emt 0:00:26]} Kf8 {[%emt 0:02:05]} 36. Rh8+ {[%emt 0:01:25]} Rg8 {[%emt 0:00:02]} 37. Rf1 {[%emt 0:00:57]} Ra7 {[%emt 0:00:51]} 38. Rh7 {[%emt 0:02:13]} Rg7 {[%emt 0:02:41]} 39. Rh4 {[%emt 0:00:52]} Re7 {[%emt 0:02:25]} 40. Bf5 {[%emt 0:02:38]} Bc3 {[%emt 0:01:39]} 41. e4 {[%emt 0:01:45]} Qd2 {[%emt 0:05:58]} 42. Qxd2 {[%emt 0:01:12]} Bxd2 {[%emt 0:00:05]} 43. Rxg4 {[%emt 0:00:12]} Rxg4 {[%emt 0:00:44]} 44. Bxg4 {[%emt 0:00:03]} Rxe4 {[%emt 0:01:43]} 45. Be6 {[%emt 0:02:37]} Bg5 {[%emt 0:05:43]} 46. Rxf7+ {[%emt 0:00:41]} Ke8 {[%emt 0:00:07]} 47. Rb7 {[%emt 0:01:32]} Bd8 {[%emt 0:19:29]} 48. Bf5 {[%emt 0:01:33]} Re2+ {[%emt 0:00:00]} 49. Kf3 {[%emt 0:00:33]} Rb2 {[%emt 0:00:00]} 50. Bg6+ {[%emt 0:00:12]} Kf8 {[%emt 0:00:00]} 51. Rf7+ {[%emt 0:00:09]} Kg8 {[%emt 0:00:00]} 52. Rd7 {[%emt 0:00:24]} Rxb3+ {[%emt 0:00:00]} 53. Kg4 {[%emt 0:00:07]} Bf6 {[%emt 0:00:00]} 54. Rxd6 {[%emt 0:00:11]} Rxg3+ {[%emt 0:00:00]} 55. Kf5 {[%emt 0:01:20]} Be7 {[%emt 0:00:00]} 56. Rxb6 {[%emt 0:00:38]} Rg5+ {[%emt 0:00:00]} 57. Kf4 {[%emt 0:01:12]} a5 {[%emt 0:00:00]} 58. Rb8+ {[%emt 0:00:22]} Kg7 {[%emt 0:00:00]} 59. Rb7 {[%emt 0:00:09]} Kxg6 {[%emt 0:00:00]} 60. Rxe7 {[%emt 0:00:08]} Rf5+ {[%emt 0:00:00]} 61. Ke4 {[%emt 0:00:35]} Rh5 {[%emt 0:00:00]} 62. Rc7 {[%emt 0:01:27]} Rh4+ {[%emt 0:00:00]} 63. Ke5 {[%emt 0:00:49]} Rxc4 {[%emt 0:00:09]} 64. d6 {[%emt 0:00:05]} Rxa4 {[%emt 0:00:36]} 65. d7 {[%emt 0:00:03]} Rd4 {[%emt 0:00:10]} 66. Rc6+ {[%emt 0:00:12]} Kf7 {[%emt 0:00:42]} 67. Rd6 {[%emt 0:46:48]} 1-0